bitfinex-derivatives/quotes_ETHF0:USTF0_20251008
["timestamp","ask_amount","ask_price","bid_price","bid_amount"]
[1759937436429,0.1624,4458.5,4457.9,0.226]
[1759937436641,0.81764,4458.1,4457.9,0.4044]
[1759937436934,0.40364,4458.1,4457.9,0.226]
[1759937437437,0.414,4458.0,4457.9,0.226]
[1759937437828,1.00914,4457.9,4457.1,3.2078]
[1759937438133,0.5764,4457.0,4456.9,0.00235]
[1759937439331,0.8072,4456.3,4456.2,0.17519678]
[1759937439637,5.1624,4457.0,4456.2,0.17519678]
[1759937439638,0.40377,4456.6,4456.2,0.17519678]
[1759937439838,0.1624,4457.0,4456.2,0.17519678]
[1759937439839,0.4034,4456.4,4456.2,0.4038]
[1759937440131,0.4038,4456.3,4456.1,3.60896165]
[1759937440326,0.4034,4456.2,4456.1,3.61175348]
[1759937440532,0.4034,4456.2,4456.1,3.38575348]
[1759937440730,0.4034,4456.2,4456.1,0.00279183]
[1759937441133,0.80721,4456.2,4456.1,0.00279183]
[1759937442136,0.4034,4456.2,4456.1,0.00279183]
[1759937442341,0.5912,4456.5,4456.4,0.40379]
[1759937442731,0.424,4456.4,4456.3,0.40379]
[1759937443227,0.424,4456.2,4456.1,3.21059183]
[1759937443427,0.424,4456.2,4456.1,0.00279183]
[1759937444936,0.82781,4456.2,4456.1,0.00279183]
[1759937445930,5.82781,4456.2,4456.1,1.83e-06]
[1759937446129,0.8279,4455.2,4455.1,3.2078]
[1759937446633,0.8279,4455.2,4454.5,40.9731]
[1759937446634,0.40394,4454.7,4454.6,3.2078]
[1759937446838,0.424,4454.7,4454.6,3.2078]
[1759937447134,0.42579818,4454.7,4454.6,3.20959056]
[1759937447725,0.00179818,4454.7,4454.6,3.38269056]
[1759937447932,0.424,4455.4,4455.3,0.40389]
[1759937448127,0.1634,4456.0,4455.5,0.40387]
[1759937448430,0.424,4455.9,4455.4,0.40387]
[1759937448626,0.424,4455.5,4455.4,0.40387]
[1759937449134,0.42583974,4455.5,4455.4,0.40387]
[1759937449434,0.58923974,4455.5,4455.4,0.40387]
[1759937450431,0.00183974,4455.5,4455.4,0.40387]
[1759937450635,0.42583974,4455.5,4455.4,0.40387]
[1759937450829,0.424,4455.4,4455.3,0.40389]
[1759937451034,0.424,4455.3,4455.2,3.61169]
[1759937451231,0.99310974,4455.5,4455.3,0.40388]
[1759937451431,0.424,4455.4,4455.3,0.40388]
[1759937451634,0.00183974,4455.5,4455.3,0.40388]
[1759937451830,0.424,4456.3,4455.4,0.1731]
[1759937452135,0.1634,4457.5,4456.9,0.40374]
[1759937452136,0.1634,4457.0,4456.9,0.40374]
[1759937452335,0.1634,4457.5,4456.9,0.226]
[1759937452634,0.1634,4458.0,4457.0,0.1749]
[1759937452843,0.16559701,4458.0,4457.8,0.40366]
[1759937453134,0.56924701,4458.0,4457.8,0.00195397]
[1759937453531,0.56923701,4458.0,4457.8,0.00195397]
[1759937453931,0.424,4457.9,4457.8,0.00195397]
[1759937456034,0.82765,4457.9,4457.8,0.00195397]
[1759937456237,0.424,4457.9,4457.8,0.00195397]
[1759937458244,0.424,4457.9,4456.0,1.10056]
[1759937458245,0.424,4456.9,4456.6,3.4338]
[1759937458437,0.424,4456.8,4456.7,0.40376]
[1759937459141,0.1634,4457.5,4457.1,0.57862]
[1759937459142,0.40371,4457.3,4457.1,0.57862]
[1759937459336,0.424,4457.4,4457.0,0.40373]
[1759937459544,0.40373,4457.1,4456.9,0.40374]
[1759937459844,0.1634,4457.5,4456.7,0.35578899]
[1759937460045,0.5874,4457.5,4457.3,0.4037]
[1759937460240,0.40371,4457.3,4457.1,3.2078]
[1759937461240,0.424,4457.8,4457.1,0.40372]
[1759937461446,0.1634,4457.5,4457.1,0.40372]
[1759937461640,0.424,4456.8,4456.7,0.00203983]
[1759937462842,0.424,4457.3,4457.1,0.57862]
[1759937463140,0.424,4457.4,4457.1,0.40372]
[1759937463336,0.1634,4457.5,4457.1,0.40372]
[1759937463539,0.424,4457.4,4457.1,0.40372]
[1759937463743,0.82772,4457.1,4456.9,0.40374]
[1759937463942,0.424,4457.1,4456.8,3.2078]
[1759937464146,0.40374,4456.9,4456.7,3.20983983]
[1759937464343,0.424,4456.8,4456.7,3.61358983]
[1759937464848,0.424,4456.8,4456.7,3.20983983]
[1759937465052,0.424,4456.8,4456.7,3.61359983]
[1759937465442,0.424,4456.8,4456.7,3.20983983]
[1759937465648,0.424,4456.2,4456.1,3.2078]
[1759937466153,0.5874,4457.0,4456.8,0.40375]
[1759937466353,0.424,4456.9,4456.8,0.40375]
[1759937466540,3.2078,4457.7,4456.8,0.40375]
[1759937466541,0.424,4457.3,4456.9,1.00936]
[1759937466739,0.424,4457.3,4457.0,0.1749]
[1759937467049,0.424,4457.3,4456.8,0.00168592]
[1759937467050,0.82774,4456.9,4456.8,0.00168592]
[1759937467250,0.424,4456.9,4456.8,0.00168592]
[1759937468944,0.424,4456.9,4455.9,0.18076547]
[1759937468945,1.00948,4456.4,4455.6,5.21171243]
[1759937469144,0.57793,4456.0,4455.6,3.4338]
[1759937469344,0.4007,4455.7,4455.6,3.4338]
[1759937469957,0.4007,4455.7,4455.6,3.43638445]
[1759937470349,0.4007,4455.7,4455.6,3.38526079]
[1759937470550,0.4007,4455.7,4455.6,0.00258445]
[1759937471757,0.6267,4455.7,4455.6,0.00258445]
[1759937472357,11.73052523,4455.7,4455.6,0.00258445]
[1759937473245,3.8345,4455.7,4455.6,0.00258445]
[1759937473858,0.4007,4455.7,4455.6,0.40644445]
[1759937474053,0.1741,4456.5,4455.7,0.4064]
[1759937474354,0.60579,4456.4,4455.9,3.61163]
[1759937474550,0.60579,4456.4,4455.6,0.00258445]
[1759937474551,0.40385,4455.8,4455.6,0.00258445]
[1759937475154,3.2078,4456.3,4455.6,0.00258445]
[1759937475558,0.40382,4456.1,4455.9,0.40383]
[1759937476150,0.80452,4456.1,4455.9,0.40383]
[1759937476458,0.80452,4456.1,4455.9,0.81023]
[1759937476651,0.40384,4455.8,4455.7,0.40385]
[1759937476851,0.80454,4455.8,4455.6,0.00258445]
[1759937477052,0.4007,4455.7,4455.6,0.00258445]
[1759937477851,0.6267,4455.7,4455.6,0.00258445]
[1759937478249,5.6267,4455.7,4455.6,0.00258445]
[1759937478858,5.6267,4455.7,4454.1,0.4064]
[1759937478859,0.4007,4454.9,4454.1,0.4064]
[1759937479048,0.4007,4454.9,4454.1,0.58279019]
[1759937479049,0.226,4454.9,4454.1,0.58279019]
[1759937479256,0.1741,4455.5,4455.0,0.4064]
[1759937479451,0.4007,4455.4,4455.1,0.4039]
[1759937479657,0.40389,4455.3,4455.1,0.40915478]
[1759937479855,0.1741,4455.5,4455.1,0.40915478]
[1759937479856,0.4007,4455.2,4455.1,0.81305478]
[1759937480052,0.4007,4455.2,4455.1,0.00275478]
[1759937482868,5.4007,4455.2,4455.1,0.00275478]
[1759937483076,0.4007,4454.3,4454.2,3.61178]
[1759937483374,0.80468,4454.3,4454.2,3.2078]
[1759937483572,0.4007,4454.3,4454.2,3.2078]
[1759937483762,0.40396,4454.5,4454.2,4.01818]
[1759937483967,0.80737976,4454.5,4454.3,0.81037]
[1759937484166,0.40341976,4454.5,4454.3,0.81037]
[1759937484467,0.40341976,4454.5,4454.4,0.4064]
[1759937484468,9.76e-06,4454.5,4454.4,0.4064]
[1759937485068,3.2078,4456.1,4454.6,0.4064]
[1759937485265,0.40385,4455.7,4455.4,3.6142]
[1759937485468,3.2748,4456.1,4455.4,0.81028]
[1759937485672,0.4007,4455.9,4455.3,3.2078]
[1759937486072,0.40340484,4455.9,4455.3,3.2078]
[1759937486267,0.00270484,4455.9,4455.8,0.4064]
[1759937486671,0.40387,4455.5,4455.3,3.2078]
[1759937486872,0.40392,4455.0,4454.9,0.4064]
[1759937487273,0.4039,4455.2,4455.1,0.40391]
[1759937487474,0.80458,4455.4,4455.2,0.4039]
[1759937487679,0.4007,4455.3,4455.2,0.4039]
[1759937487874,0.226,4455.8,4455.6,0.40385]
[1759937488081,0.00270484,4455.9,4455.7,0.40385]
[1759937488573,0.40653484,4455.9,4455.7,0.4064]
[1759937488779,0.40387,4455.5,4455.4,0.4064]
[1759937489176,0.00270484,4455.9,4455.6,0.40386]
[1759937489377,0.00270484,4455.9,4455.7,0.81025]
[1759937489770,0.00270484,4455.9,4455.7,0.40385]
[1759937489976,0.00270484,4455.9,4455.8,0.4064]
[1759937490475,0.40340484,4455.9,4455.8,0.4064]
[1759937490975,0.40340484,4455.9,4454.9,2.01134074]
[1759937490976,0.4039,4455.1,4454.9,2.01134074]
[1759937491182,0.4039,4455.1,4455.0,0.4064]
[1759937491371,0.4007,4455.4,4455.3,0.4064]
[1759937491571,0.22870484,4455.9,4455.8,0.4064]
[1759937491572,0.00270484,4455.9,4455.8,0.4064]
[1759937492185,4.84e-06,4455.9,4455.8,3.6142]
[1759937493376,4.84e-06,4455.9,4455.8,3.8402]
[1759937493579,0.4007,4457.0,4456.8,0.40375]
[1759937493774,0.4007,4457.0,4456.8,0.81015]
[1759937493974,0.1741,4457.5,4456.9,0.81013]
[1759937494178,0.4037,4457.4,4457.3,0.4064]
[1759937494374,3.61148,4457.6,4457.3,0.98340244]
[1759937494580,3.21058552,4457.6,4457.4,0.81009]
[1759937494884,0.00278552,4457.6,4457.5,0.4064]
[1759937495184,0.4007,4457.5,4457.4,0.00213949]
[1759937495778,0.00278552,4457.6,4457.5,0.4064]
[1759937496580,0.80717552,4457.6,4457.4,0.00213949]
[1759937496781,0.5748,4457.5,4457.4,0.00213949]
[1759937497586,1.00933,4457.1,4456.6,3.2078]
[1759937497880,0.80455,4455.7,4455.6,4.81559485]
[1759937498082,0.80455,4455.7,4455.6,3.2078]
[1759937498675,0.40383,4455.9,4455.6,3.21013868]
[1759937498880,0.40383,4455.9,4455.7,0.4317]
[1759937499378,0.4209,4455.8,4455.7,0.4317]
[1759937499574,0.40385,4455.8,4455.6,3.21013868]
[1759937499780,0.4209,4455.7,4455.6,3.21013868]
[1759937500579,0.4209,4456.3,4456.0,0.40382]
[1759937500783,0.4209,4456.8,4456.5,0.4317]
[1759937500988,0.4209,4456.8,4456.6,0.40377]
[1759937501183,0.4209,4456.8,4456.6,0.83547]
[1759937501384,0.82465,4456.8,4456.6,0.83547]
[1759937501580,0.40375,4456.8,4456.6,0.40377]
[1759937501786,0.4209,4456.8,4456.6,0.40377]
[1759937501982,0.4209,4456.9,4456.4,0.4317]
[1759937502284,0.82471,4456.2,4455.8,1.60779485]
[1759937502492,0.226,4456.8,4455.7,0.226]
[1759937502493,0.4209,4456.7,4455.7,1.83379485]
[1759937502688,0.4209,4456.7,4456.1,3.61161]
[1759937502991,0.4038,4456.3,4456.2,0.4317]
[1759937503190,0.40382,4456.1,4456.0,0.4317]
[1759937503394,0.82472,4456.1,4456.0,0.4317]
[1759937503588,0.4209,4456.3,4455.7,0.4317]
[1759937503888,0.82475,4455.7,4455.6,0.00233868]
[1759937504287,0.4209,4455.7,4455.6,0.00233868]
[1759937506485,5.6469,4455.7,4454.6,3.2078]
[1759937506690,0.40398,4454.3,4454.1,3.2078]
[1759937506996,0.40403,4453.8,4453.6,44.4395]
[1759937507288,0.4209,4454.4,4453.7,0.6577]
[1759937507498,0.4209,4454.1,4454.0,0.404]
[1759937507692,0.00167393,4454.1,4454.0,0.83853889]
[1759937507994,0.42257393,4454.1,4454.0,0.00283889]
[1759937508789,0.3977,4455.2,4454.1,0.4242]
[1759937508993,0.3977,4455.2,4454.6,3.2078]
[1759937509496,0.40394,4454.7,4454.2,0.226]
[1759937509793,0.3977,4454.6,4454.2,0.226]
[1759937509989,0.00203132,4454.7,4454.3,0.40398]
[1759937510195,0.00203132,4454.7,4454.6,0.4242]
[1759937510591,0.39973132,4454.7,4454.5,0.40396]
[1759937511193,0.00203132,4454.7,4454.6,0.4242]
[1759937511884,0.39973132,4454.7,4454.6,0.4242]
[1759937512198,0.3977,4454.6,4454.5,0.40396]
[1759937512790,0.40398,4454.3,4454.2,0.40398]
[1759937512989,0.80168,4454.3,4454.2,0.62998]
[1759937513190,0.3977,4454.5,4454.3,0.40397]
[1759937513397,0.00203132,4454.7,4454.6,0.40395]
[1759937513599,0.00203132,4454.7,4454.6,0.4242]
[1759937513797,0.3977,4454.6,4454.3,0.4242]
[1759937513990,0.1656,4454.5,4454.2,0.226]
[1759937514190,0.40399,4454.3,4454.1,3.61179]
[1759937514390,0.40396,4454.5,4454.1,3.2078]
[1759937514596,0.40597132,4454.7,4454.5,0.40396]
[1759937514896,0.39973132,4454.7,4454.5,0.40395]
[1759937515095,0.3977,4454.6,4454.5,0.40395]
[1759937516692,0.00203132,4454.7,4454.5,0.82815]
[1759937516893,0.00203132,4454.7,4454.6,0.4242]
[1759937517785,0.00203132,4454.7,4454.6,0.82815]
[1759937518594,0.00203132,4454.7,4454.6,0.4242]
[1759937518991,0.00203132,4454.7,4454.6,0.82815]
[1759937520391,0.80166,4454.5,4454.4,3.2078]
[1759937520591,0.96726,4454.5,4454.4,3.2078]
[1759937520793,0.80166,4454.5,4454.4,3.632]
[1759937521295,0.80166,4454.5,4454.4,3.2078]
[1759937521491,0.40396,4454.5,4454.4,3.632]
[1759937521692,0.80166,4454.5,4454.4,3.2078]
[1759937522097,0.96726,4454.5,4454.4,3.2078]
[1759937522593,0.8017,4454.1,4454.0,0.00283889]
[1759937522996,0.3977,4454.1,4454.0,0.00283889]
[1759937523299,0.3977,4454.1,4454.0,0.42703889]
[1759937523599,0.3977,4454.1,4454.0,0.00283889]
[1759937524099,0.3977,4454.1,4454.0,0.42703889]
[1759937524303,0.3977,4454.4,4454.3,0.40398]
[1759937524498,0.3977,4454.4,4454.1,0.4242]
[1759937524698,0.80169,4454.2,4454.0,0.83103889]
[1759937524899,0.3977,4454.2,4454.0,0.83103889]
[1759937525198,0.3977,4454.2,4454.1,0.4242]
[1759937525394,0.3977,4454.5,4454.0,0.00283889]
[1759937525589,0.00203132,4454.7,4454.6,0.4242]
[1759937525790,0.00203132,4454.7,4454.6,0.6502]
[1759937528694,0.8175,4454.1,4454.0,0.41633889]
[1759937528900,0.8175,4454.1,4454.0,0.00283889]
[1759937529797,0.4135,4454.1,4454.0,0.00283889]
[1759937531705,3.20983132,4454.7,4454.1,0.4135]
[1759937531900,0.00203132,4454.7,4454.6,3.6213]
[1759937532096,0.4135,4455.7,4454.6,3.4338]
[1759937532302,0.4038,4456.3,4456.0,0.40381]
[1759937532501,0.4135,4456.3,4456.0,0.81731]
[1759937532704,0.4135,4456.4,4455.8,0.40384]
[1759937532907,0.4135,4455.9,4455.8,0.40384]
[1759937533202,0.41629017,4455.9,4455.8,0.40384]
[1759937533499,0.40384,4455.8,4455.6,0.226]
[1759937533699,0.40384,4455.8,4455.5,3.2078]
[1759937533700,0.41629017,4455.9,4455.2,0.4135]
[1759937533901,0.00279017,4455.9,4455.8,0.4135]
[1759937534096,0.00279017,4455.9,4455.8,3.6213]
[1759937537101,0.00279017,4455.9,4455.8,0.4135]
[1759937537302,0.4135,4455.4,4455.3,3.2078]
[1759937537506,0.00279017,4455.9,4455.4,0.4135]
[1759937537698,0.4135,4455.8,4455.6,0.40385]
[1759937537904,0.00279017,4455.9,4455.8,0.81734]
[1759937538306,0.40385,4455.7,4455.3,3.2078]
[1759937538607,0.82012017,4455.9,4455.7,0.40385]
[1759937538807,0.4135,4455.5,4455.4,0.6395]
[1759937539010,0.00279017,4455.9,4455.5,0.4135]
[1759937539310,0.40663017,4455.9,4455.7,0.81735]
[1759937539603,3.6213,4456.8,4456.6,0.40376]
[1759937539803,0.40375,4456.8,4456.4,0.40378]
[1759937540000,0.4135,4456.7,4456.6,0.40377]
[1759937540406,0.40378,4456.5,4456.4,0.40378]
[1759937540602,0.0023398,4456.5,4456.4,0.40378]
[1759937540806,0.0023398,4456.5,4456.4,0.81728]
[1759937541401,0.4135,4456.4,4456.3,3.2078]
[1759937541804,0.4135,4456.4,4456.3,3.4338]
[1759937542004,0.4135,4456.0,4455.8,0.40384]
[1759937542205,0.4135,4456.0,4455.9,0.226]
[1759937542600,0.4158398,4456.5,4456.3,0.40379]
[1759937542905,0.0023398,4456.5,4456.4,0.4135]
[1759937543603,0.4158398,4456.5,4456.4,0.4135]
[1759937543802,0.0023398,4456.5,4456.4,0.4135]
[1759937544402,0.4158398,4456.5,4456.3,0.62979]
[1759937544807,0.0023398,4456.5,4456.4,0.4135]
[1759937545297,3.6213,4457.8,4457.7,0.40367]
[1759937545709,3.2078,4457.8,4457.4,0.40369]
[1759937545909,0.4135,4457.5,4457.4,0.40369]
[1759937546413,0.00171668,4457.5,4457.4,4.25303717]
[1759937546606,0.00171668,4457.5,4457.4,6.04834334]
[1759937546805,0.4135,4458.7,4458.2,0.4135]
[1759937547003,0.4135,4458.7,4458.5,0.81709]
[1759937547409,3.2078,4458.8,4458.7,0.4135]
[1759937547903,3.2100586,4458.8,4458.7,0.4135]
[1759937548106,0.40358,4458.7,4458.5,0.18056851]
[1759937548310,0.4135,4458.6,4458.4,0.226]
[1759937548509,0.4135,4458.6,4458.5,0.4135]
[1759937549015,0.4157586,4458.8,4458.5,0.4135]
[1759937549309,0.0022586,4458.8,4458.7,0.4135]
[1759937550312,0.4135,4460.0,4459.8,0.40347]
[1759937550515,3.2078,4460.3,4459.5,3.7811]
[1759937550712,0.40346,4460.0,4459.5,3.3676]
[1759937550904,0.4135,4460.2,4459.6,0.6395]
[1759937551109,0.4135,4460.2,4459.0,0.0876]
[1759937551110,0.40354,4459.1,4459.0,3.6213]
[1759937551309,0.40354,4459.1,4459.0,0.6395]
[1759937551509,0.40354,4459.1,4459.0,0.4135]
[1759937551709,0.40354,4459.1,4459.0,0.6395]
[1759937551909,3.2078,4459.8,4459.0,0.6395]
[1759937551910,0.4135,4459.3,4459.0,0.226]
[1759937552115,0.4135,4459.3,4459.1,0.4135]
[1759937552316,0.81703,4459.3,4459.1,0.4135]
[1759937554316,0.4135,4459.2,4459.1,0.4135]
[1759937554515,0.40353,4459.3,4458.4,3.3882977]
[1759937554516,0.40358,4458.7,4458.6,0.226]
[1759937554721,0.4135,4458.7,4458.6,0.226]
[1759937554912,0.40355,4459.1,4458.6,0.6395]
[1759937555115,0.40355,4459.1,4458.7,0.40358]
[1759937555314,0.4135,4459.0,4458.8,0.4135]
[1759937555511,0.40355,4459.0,4458.8,0.81707]
[1759937555718,0.4135,4458.9,4458.8,0.40357]
[1759937555915,3.2078,4459.3,4458.7,0.4135]
[1759937556123,0.4135,4459.8,4459.2,0.40353]
[1759937556418,0.4135,4459.9,4459.2,0.4135]
[1759937556713,0.40353,4459.2,4459.0,0.6395]
[1759937556908,0.4135,4459.1,4459.0,0.4135]
[1759937557108,3.5994,4460.0,4458.5,0.5543]
[1759937557109,0.4135,4459.3,4458.5,0.5543]
[1759937557313,3.3734,4459.5,4458.6,0.62959]
[1759937557512,0.40355,4459.0,4458.6,1.04309]
[1759937557716,0.4135,4458.9,4458.7,0.40358]
[1759937558119,0.4135,4458.9,4458.7,0.81708]
[1759937558318,0.4135,4458.9,4458.7,0.40358]
[1759937558518,0.4135,4458.9,4458.8,0.3843]
[1759937558716,0.3837,4458.9,4458.3,3.2078]
[1759937558924,0.3837,4458.0,4457.9,0.3843]
[1759937559219,0.78737,4457.8,4457.6,0.3843]
[1759937559415,0.3837,4457.8,4457.6,0.3843]
[1759937559616,3.2078,4458.3,4457.6,0.3843]
[1759937559617,0.40362,4458.3,4457.6,0.3843]
[1759937559809,0.4036,4458.5,4458.1,0.78793]
[1759937560008,0.3837,4458.8,4458.0,1.09671]
[1759937560212,0.3837,4459.5,4459.3,0.40352]
[1759937560420,0.78721,4459.5,4459.1,0.40354]
[1759937560617,0.3837,4459.5,4459.4,0.78782]
[1759937560816,0.3837,4459.5,4458.9,0.3843]
[1759937561016,3.2078,4459.8,4458.5,3.3676]
[1759937561017,0.40354,4459.2,4458.6,0.3843]
[1759937561219,0.40352,4459.4,4458.9,0.226]
[1759937561524,0.3837,4459.3,4459.1,0.40353]
[1759937561723,0.1618,4459.5,4459.1,0.40354]
[1759937561924,0.79352,4459.4,4459.2,0.4137]
[1759937562126,0.39,4459.0,4458.9,0.226]
[1759937562314,0.40359,4458.7,4458.5,0.4036]
[1759937562518,0.40361,4458.4,4458.3,0.4137]
[1759937562917,0.40361,4458.4,4457.8,3.2078]
[1759937562918,0.39,4458.0,4457.9,0.4137]
[1759937563624,0.1615,4458.5,4457.9,0.4137]
[1759937563824,0.5515,4459.0,4458.3,3.2078]
[1759937564024,0.40357,4458.8,4458.6,0.40358]
[1759937564324,0.40358,4458.7,4458.5,0.4036]
[1759937564624,0.39,4458.6,4458.5,0.4036]
[1759937565221,0.40356,4459.0,4458.8,0.40356]
[1759937565525,0.40356,4459.0,4458.9,0.4137]
[1759937565727,3.2078,4459.3,4458.9,0.4137]
[1759937565915,3.2078,4459.3,4458.5,1.00898]
[1759937565916,0.39,4459.2,4458.5,0.4137]
[1759937566115,3.2078,4459.3,4458.3,3.83741]
[1759937566116,0.40361,4458.4,4458.3,0.4137]
[1759937566321,0.39,4458.3,4458.2,0.40362]
[1759937566522,0.40361,4458.4,4458.3,0.4137]
[1759937566716,0.4036,4458.6,4458.3,0.4137]
[1759937566922,0.39,4458.7,4458.2,0.4137]
[1759937567225,0.39,4458.4,4458.3,0.40361]
[1759937567431,0.39,4458.1,4457.9,0.4137]
[1759937567620,0.79364,4458.1,4458.0,0.226]
[1759937568027,0.39,4458.3,4458.1,0.4137]
[1759937568218,0.40357,4458.8,4458.5,0.40359]
[1759937568528,0.40359,4458.6,4458.4,0.4137]
[1759937568721,0.39,4458.8,4458.0,0.226]
[1759937568921,0.39,4458.8,4458.1,0.4137]
[1759937569122,3.2078,4458.9,4458.5,0.40359]
[1759937569520,0.7936,4458.5,4458.3,0.4137]
[1759937570028,0.39,4458.5,4458.3,0.81731]
[1759937570523,0.39,4458.5,4458.3,0.40361]
[1759937570723,3.5978,4459.4,4458.6,0.4137]
[1759937571028,0.39,4459.3,4458.6,0.4137]
[1759937571229,0.39,4459.3,4458.9,0.40356]
[1759937571529,0.39,4459.1,4459.0,0.40355]
[1759937571721,3.2078,4459.4,4459.3,0.40352]
[1759937571919,0.39,4457.9,4456.6,3.6215]
[1759937572123,0.40375,4456.8,4456.0,3.362]
[1759937572320,0.39,4456.9,4456.2,0.4137]
[1759937572516,0.40376,4456.7,4456.2,0.4137]
[1759937572729,0.40377,4456.6,4456.2,0.58278319]
[1759937573022,0.1615,4457.0,4456.2,0.00231882]
[1759937573023,0.56528,4456.5,4456.2,0.00231882]
[1759937573222,0.39,4456.3,4456.2,0.00231882]
[1759937574126,0.39,4456.3,4455.2,3.2078]
[1759937574127,0.39,4455.3,4455.2,3.2078]
[1759937574322,0.39,4455.3,4454.8,3.2078]
[1759937574323,0.40389,4455.3,4454.8,3.2078]
[1759937574525,0.4039,4455.2,4454.8,3.2078]
[1759937574829,0.39,4455.1,4454.8,3.6215]
[1759937575030,0.40393,4454.8,4454.4,0.226]
[1759937575329,0.39,4454.5,4454.4,0.00182601]
[1759937575526,0.5515,4454.5,4454.4,0.00182601]
[1759937576124,3.2078,4454.8,4454.4,0.00182601]
[1759937576328,0.226,4455.1,4454.8,0.4137]
[1759937576725,0.226,4455.1,4454.6,0.81764]
[1759937576726,0.39,4454.9,4454.6,0.81764]
[1759937576926,0.39,4454.9,4454.5,3.2078]
[1759937576927,0.1615,4456.0,4455.4,0.40388]
[1759937577130,0.40385,4455.8,4455.2,3.61169]
[1759937577432,0.4039,4455.3,4454.6,3.2078]
[1759937577624,0.40389,4455.3,4454.6,3.6215]
[1759937577825,0.40391,4455.1,4454.6,3.6215]
[1759937578030,0.1615,4455.5,4454.6,4.02544]
[1759937578031,3.3693,4455.5,4454.6,4.02544]
[1759937578332,0.39,4455.1,4454.6,3.6215]
[1759937578630,0.4039,4455.2,4454.8,0.40393]
[1759937579023,0.39,4454.9,4454.6,3.6215]
[1759937579226,0.39,4455.1,4454.8,0.40393]
[1759937579426,0.4039,4455.2,4454.8,0.40393]
[1759937579628,0.39,4455.1,4454.8,0.40393]
[1759937579829,0.39,4455.1,4454.9,0.40392]
[1759937580035,1.00931,4457.2,4454.9,0.40392]
[1759937580036,3.2078,4457.2,4456.5,0.5679]
[1759937580227,3.2078,4457.8,4456.6,0.4137]
[1759937580424,3.2078,4456.7,4455.9,0.4137]
[1759937580621,3.2078,4456.7,4455.8,3.8475]
[1759937580827,0.4038,4456.3,4455.9,0.4137]
[1759937581027,0.40381,4456.2,4455.9,0.4137]
[1759937581228,0.40592887,4456.2,4455.9,0.4137]
[1759937581426,0.40592887,4456.2,4455.5,40.9542]
[1759937581427,0.40383,4456.0,4455.5,0.1542]
[1759937581632,0.40383,4456.0,4455.6,0.81756]
[1759937581824,0.00211887,4456.2,4455.6,0.4137]
[1759937582230,0.00211887,4456.2,4456.1,0.4137]
[1759937584832,0.40369,4457.6,4456.3,0.4137]
[1759937585133,0.226,4458.2,4457.3,0.4137]
[1759937585434,0.40363,4458.1,4457.8,0.40365]
[1759937585733,0.39,4458.8,4458.2,0.4137]
[1759937585934,0.00287541,4458.8,4458.2,0.00207837]
[1759937586236,0.39,4458.4,4458.2,0.00207837]
[1759937586537,0.40361,4458.4,4458.3,0.4137]
[1759937586830,0.39287541,4458.8,4458.3,0.4137]
[1759937587031,0.00287541,4458.8,4458.7,0.40358]
[1759937587239,0.00287541,4458.8,4458.7,4.02508]
[1759937587626,0.00287541,4458.8,4458.2,0.41577837]
[1759937588032,0.40644541,4458.8,4458.2,0.41577837]
[1759937588234,0.00287541,4458.8,4458.2,0.41577837]
[1759937588531,0.00287541,4458.8,4458.7,0.3831]
[1759937588726,0.40644541,4458.8,4458.7,0.3831]
[1759937589632,0.00287541,4458.8,4458.7,0.3831]
[1759937590434,0.40644541,4458.8,4458.7,0.3831]
[1759937590636,0.00287541,4458.8,4458.7,0.3831]
[1759937591643,3.2078,4459.6,4458.7,0.3831]
[1759937591644,0.40348,4459.8,4459.1,0.3831]
[1759937591835,0.40348,4459.8,4459.0,0.1542]
[1759937591836,0.621,4460.2,4459.5,0.3831]
[1759937592034,2.94807527,4460.1,4459.4,0.3831]
[1759937592344,0.4035,4459.6,4459.5,0.3831]
[1759937592537,0.4035,4459.6,4459.5,0.5373]
[1759937592538,0.00291257,4459.6,4459.5,0.5373]
[1759937592833,0.00291257,4459.6,4459.5,0.94081]
[1759937593038,0.00291257,4459.6,4459.5,0.5373]
[1759937593632,37.01672,4461.4,4460.2,0.3831]
[1759937593633,0.40342,4460.5,4460.2,0.3831]
[1759937593937,2.95612308,4461.0,4460.2,0.3831]
[1759937594141,0.4034,4460.7,4460.5,0.40341]
[1759937594336,0.226,4461.1,4460.1,3.2078]
[1759937594535,0.40343,4460.4,4460.1,3.61125]
[1759937594736,0.00222181,4460.4,4460.3,0.3831]
[1759937595234,3.2078,4461.3,4460.9,0.40338]
[1759937595433,0.40336,4461.2,4461.1,0.3831]
[1759937595633,0.79831,4461.7,4461.3,0.3831]
[1759937595835,3.2078,4462.3,4461.7,0.3831]
[1759937596038,3.2078,4462.8,4461.7,0.6091]
[1759937596239,0.40329,4461.9,4461.7,0.3831]
[1759937596448,0.40329,4461.9,4461.7,0.38468268]
[1759937596938,3.2078,4461.8,4461.7,0.38468268]
[1759937597333,3.2078,4462.4,4461.7,0.38468268]
[1759937597532,0.40329,4461.9,4461.8,0.3831]
[1759937597939,0.4033,4461.8,4461.7,0.00158268]
[1759937598243,0.4033,4461.8,4461.7,0.38468268]
[1759937598445,3.6028,4462.4,4461.8,0.3831]
[1759937598638,0.4033,4461.8,4461.7,0.38468268]
[1759937599241,0.40336,4461.1,4461.0,3.362]
[1759937599437,0.40336,4461.1,4461.0,3.4338]
[1759937599639,0.79836,4461.1,4461.0,3.2078]
[1759937599840,3.2078,4461.8,4461.0,0.226]
[1759937600042,0.40325,4462.4,4461.5,0.1542]
[1759937600243,3.60465886,4462.8,4462.0,0.40328]
[1759937600436,1.00805,4462.7,4461.8,3.2078]